fUSD/lending_fUSD_20250812
["ID","MTS","AMOUNT","RATE_DAILY","PERIOD"]
[378755381,1755003084232,-400.0,0.00042191,30]
[378755382,1755003084242,-400.0,0.00042191,30]
[378755383,1755003084251,-400.0,0.00042191,30]
[378755384,1755003084260,-317.30531123,0.00042191,30]
[378755385,1755003084269,-400.0,0.00042191,30]
[378755386,1755003084282,-400.0,0.00042191,30]
[378755387,1755003084291,-400.0,0.00042191,30]
[378755388,1755003084300,-407.69,0.00042191,30]
[378755389,1755003084309,-400.0,0.00042191,30]
[378755390,1755003084319,-400.0,0.00042191,30]
[378755391,1755003084330,-400.0,0.00042191,30]
[378755392,1755003084339,-643.28,0.00042191,30]
[378755393,1755003084349,-400.0,0.00042191,30]
[378755394,1755003084359,-400.0,0.00042191,30]
[378755395,1755003084368,-425.08,0.00042191,30]
[378755396,1755003084378,-400.0,0.00042191,30]
[378755397,1755003084387,-400.0,0.00042191,30]
[378755398,1755003084396,-400.0,0.00042191,30]
[378755399,1755003084406,-150.23914555,0.00042191,30]
[378755400,1755003084416,-400.0,0.00042191,30]
[378755401,1755003084425,-400.0,0.00042191,30]
[378755402,1755003084434,-400.0,0.00042191,30]
[378755403,1755003084444,-400.0,0.00042191,30]
[378755404,1755003084453,-329.96,0.00042191,30]
[378755405,1755003084463,-400.0,0.00042191,30]
[378755406,1755003084472,-400.0,0.00042191,30]
[378755407,1755003084481,-485.48,0.00042191,30]
[378755408,1755003084491,-400.0,0.00042191,30]
[378755409,1755003084500,-400.0,0.00042191,30]
[378755410,1755003084509,-400.0,0.00042191,30]
[378755411,1755003084519,-400.0,0.00042191,30]
[378755412,1755003084528,-400.0,0.00042191,30]
[378755413,1755003084538,-620.11,0.00042191,30]
[378755414,1755003084547,-422.97,0.00042191,30]
[378755415,1755003084556,-400.0,0.00042191,30]
[378755416,1755003084566,-400.0,0.00042191,30]
[378755417,1755003084576,-407.76,0.00042191,30]
[378755418,1755003084585,-400.0,0.00042191,30]
[378755419,1755003084594,-400.0,0.00042191,30]
[378755420,1755003084604,-400.0,0.00042191,30]
[378755421,1755003084614,-400.0,0.00042191,30]
[378755422,1755003084626,-400.0,0.00042191,30]
[378755423,1755003084636,-400.0,0.00042191,30]
[378755424,1755003084645,-400.0,0.00042191,30]
[378755425,1755003084655,-400.0,0.00042191,30]
[378755426,1755003084665,-400.0,0.00042191,30]
[378755427,1755003084675,-400.0,0.00042191,30]
[378755428,1755003084684,-191.72,0.00042191,30]
[378755429,1755003084693,-400.0,0.00042191,30]
[378755430,1755003084704,-473.91,0.00042191,30]
[378755431,1755003084713,-400.0,0.00042191,30]
[378755432,1755003084723,-429.54,0.00042191,30]
[378755433,1755003084732,-400.0,0.00042191,30]
[378755434,1755003084742,-2095.41,0.00042191,30]
[378755435,1755003084752,-400.0,0.00042191,30]
[378755436,1755003084762,-400.0,0.00042191,30]
[378755437,1755003084772,-400.0,0.00042191,30]
[378755438,1755003084782,-400.0,0.00042191,30]
[378755439,1755003084792,-400.0,0.00042191,30]
[378755440,1755003084801,-278.3,0.00042191,30]
[378755441,1755003084811,-400.0,0.00042191,30]
[378755442,1755003084821,-501.97996679,0.00042191,30]
[378755443,1755003084832,-167.61986,0.00042191,30]
[378755444,1755003084841,-803.63,0.00042191,30]
[378755445,1755003084852,-167.61986,0.00042191,30]
[378755446,1755003084862,-403.57,0.00042191,30]
[378755447,1755003084871,-400.0,0.00042191,30]
[378755448,1755003084881,-400.0,0.00042191,30]
[378755449,1755003084891,-432.23,0.00042191,30]
[378755450,1755003084900,-354.33862052,0.00042191,30]
[378755451,1755003084910,-400.0,0.00042191,30]
[378755452,1755003084919,-400.0,0.00042191,30]
[378755453,1755003084931,-400.0,0.00042191,30]
[378755454,1755003084940,-549.53163099,0.00042191,30]
[378755455,1755003084950,-400.0,0.00042191,30]
[378755456,1755003084959,-400.0,0.00042191,30]
[378755457,1755003084969,-400.0,0.00042191,30]
[378755458,1755003084978,-400.0,0.00042191,30]
[378755459,1755003084987,-400.0,0.00042191,30]
[378755460,1755003084996,-400.0,0.00042191,30]
[378755461,1755003085006,-403.73,0.00042191,30]
[378755462,1755003085015,-506.69,0.00042191,30]
[378755463,1755003085024,-401.8455029,0.00042191,30]
[378755464,1755003085035,-400.0,0.00042191,30]
[378755465,1755003085045,-400.0,0.00042191,30]
[378755466,1755003085054,-400.0,0.00042191,30]
[378755467,1755003085064,-400.0,0.00042191,30]
[378755468,1755003085073,-535.79,0.00042191,30]
[378755469,1755003085082,-400.0,0.00042191,30]
[378755470,1755003085091,-400.0,0.00042191,30]
[378755471,1755003085101,-400.0,0.00042191,30]
[378755472,1755003085110,-1369.1,0.00042191,30]
[378755473,1755003085119,-400.0,0.00042191,30]
[378755474,1755003085128,-400.0,0.00042191,30]
[378755475,1755003085138,-460.46,0.00042191,30]
[378755476,1755003085147,-1677.37,0.00042191,30]
[378755477,1755003085157,-400.0,0.00042191,30]
[378755478,1755003085166,-400.0,0.00042191,30]
[378755479,1755003085176,-450.16409088,0.00042191,30]
[378755480,1755003085185,-400.0,0.00042191,30]
[378755481,1755003085194,-485.13995418,0.00042191,30]
[378755482,1755003085204,-400.0,0.00042191,30]
[378755483,1755003085213,-381.94001362,0.00042191,30]
[378755484,1755003085222,-400.0,0.00042191,30]
[378755485,1755003085231,-400.0,0.00042191,30]
[378755486,1755003085240,-638.32,0.00042191,30]
[378755487,1755003085250,-400.0,0.00042191,30]
[378755488,1755003085260,-400.0,0.00042191,30]
[378755489,1755003085270,-400.0,0.00042191,30]
[378755490,1755003085280,-557.52,0.00042191,30]
[378755491,1755003085289,-720.04,0.00042191,30]
[378755492,1755003085299,-400.0,0.00042191,30]
[378755493,1755003085308,-400.0,0.00042191,30]
[378755494,1755003085318,-405.71,0.00042191,30]
[378755495,1755003085328,-400.0,0.00042191,30]
[378755496,1755003085460,-400.0,0.00042191,30]
[378755497,1755003085470,-1407.52,0.00042191,30]
[378755498,1755003085479,-400.0,0.00042191,30]
[378755499,1755003085489,-347.27949039,0.00042191,30]
[378755500,1755003085498,-400.0,0.00042191,30]
[378755501,1755003085507,-400.0,0.00042191,30]
[378755502,1755003085516,-400.0,0.00042191,30]
[378755503,1755003085525,-671.93,0.00042191,30]
[378755504,1755003085536,-535.29,0.00042191,30]
[378755505,1755003085546,-400.0,0.00042191,30]
[378755506,1755003085555,-400.0,0.00042191,30]
[378755507,1755003085565,-400.0,0.00042191,30]
[378755508,1755003085574,-537.89,0.00042191,30]
[378755509,1755003085584,-519.49,0.00042191,30]
[378755510,1755003085594,-400.0,0.00042191,30]
[378755511,1755003085604,-641.09,0.00042191,30]
[378755512,1755003085614,-400.0,0.00042191,30]
[378755513,1755003085625,-697.03,0.00042191,30]
[378755514,1755003085635,-740.0,0.00042191,30]
[378755515,1755003085644,-400.0,0.00042191,30]
[378755516,1755003085654,-400.0,0.00042191,30]
[378755517,1755003085664,-494.78,0.00042191,30]
[378755518,1755003085674,-400.0,0.00042191,30]
[378755519,1755003085684,-400.0,0.00042191,30]
[378755520,1755003085693,-400.0,0.00042191,30]
[378755521,1755003085703,-400.0,0.00042191,30]
[378755522,1755003085713,-595.64,0.00042191,30]
[378755523,1755003085723,-400.0,0.00042191,30]
[378755524,1755003085734,-695.15,0.00042191,30]
[378755525,1755003085744,-400.0,0.00042191,30]
[378755526,1755003085754,-400.0,0.00042191,30]
[378755527,1755003085763,-705.13,0.00042191,30]
[378755528,1755003085773,-400.0,0.00042191,30]
[378755529,1755003085784,-715.11,0.00042191,30]
[378755530,1755003085794,-469.65,0.00042191,30]
[378755531,1755003085804,-400.0,0.00042191,30]
[378755532,1755003085814,-400.0,0.00042191,30]
[378755533,1755003085824,-400.0,0.00042191,30]
[378755534,1755003085834,-832.68,0.00042191,30]
[378755535,1755003085843,-348.99304123,0.00042191,30]
[378755536,1755003085852,-400.0,0.00042191,30]
[378755537,1755003085862,-400.0,0.00042191,30]
[378755538,1755003085872,-400.0,0.00042191,30]
[378755539,1755003085882,-549.29,0.00042191,30]
[378755540,1755003085891,-626.92,0.00042191,30]
[378755541,1755003085901,-400.0,0.00042191,30]
[378755542,1755003085911,-435.17,0.00042191,30]
[378755543,1755003085920,-400.0,0.00042191,30]
[378755544,1755003085930,-400.0,0.00042191,30]
[378755545,1755003085939,-400.0,0.00042191,30]
[378755546,1755003085949,-400.0,0.00042191,30]
[378755547,1755003085959,-400.0,0.00042191,30]
[378755548,1755003085969,-400.0,0.00042191,30]
[378755549,1755003085979,-400.0,0.00042191,30]
[378755550,1755003085988,-400.0,0.00042191,30]
[378755551,1755003085998,-747.94,0.00042191,30]
[378755552,1755003086007,-400.0,0.00042191,30]
[378755553,1755003086017,-400.0,0.00042191,30]
[378755554,1755003086027,-400.0,0.00042191,30]
[378755555,1755003086039,-400.0,0.00042191,30]
[378755556,1755003086049,-400.0,0.00042191,30]
[378755557,1755003086059,-508.17,0.00042191,30]
[378755558,1755003086069,-150.45299764,0.00042191,30]
[378755559,1755003086079,-400.0,0.00042191,30]
[378755560,1755003086089,-400.0,0.00042191,30]
[378755561,1755003086099,-400.0,0.00042191,30]
[378755562,1755003086108,-493.89,0.00042191,30]
[378755563,1755003086118,-400.0,0.00042191,30]
[378755564,1755003086127,-400.0,0.00042191,30]
[378755565,1755003086136,-400.0,0.00042191,30]
[378755566,1755003086146,-400.0,0.00042191,30]
[378755567,1755003086155,-569.03,0.00042191,30]
[378755568,1755003086165,-400.0,0.00042191,30]
[378755569,1755003086175,-400.0,0.00042191,30]
[378755570,1755003086185,-1304.68,0.00042191,30]
[378755571,1755003086194,-472.71,0.00042191,30]
[378755572,1755003086204,-400.0,0.00042191,30]
[378755573,1755003086213,-400.0,0.00042191,30]
[378755574,1755003086223,-485.21,0.00042191,30]
[378755575,1755003086233,-400.0,0.00042191,30]
[378755576,1755003086243,-1427.73,0.00042191,30]
[378755577,1755003086253,-400.0,0.00042191,30]
[378755578,1755003086262,-400.0,0.00042191,30]
[378755579,1755003086273,-400.0,0.00042191,30]
[378755580,1755003086284,-400.0,0.00042191,30]
[378755581,1755003086293,-400.0,0.00042191,30]
[378755582,1755003086303,-400.0,0.00042191,30]
[378755583,1755003086312,-400.0,0.00042191,30]
[378755584,1755003086322,-400.0,0.00042191,30]
[378755585,1755003086332,-400.0,0.00042191,30]
[378755586,1755003086341,-400.0,0.00042191,30]
[378755587,1755003086351,-668.75,0.00042191,30]
[378755588,1755003086361,-400.0,0.00042191,30]
[378755589,1755003086370,-599.71,0.00042191,30]
[378755590,1755003086380,-400.0,0.00042191,30]
[378755591,1755003086390,-400.0,0.00042191,30]
[378755592,1755003086399,-400.0,0.00042191,30]
[378755593,1755003086409,-1550.59,0.00042191,30]
[378755594,1755003086419,-400.0,0.00042191,30]
[378755595,1755003086428,-400.0,0.00042191,30]
[378755596,1755003086438,-400.0,0.00042191,30]
[378755597,1755003086448,-509.29,0.00042191,30]
[378755598,1755003086457,-2263.04,0.00042191,30]
[378755599,1755003086466,-400.0,0.00042191,30]
[378755600,1755003086476,-801.81,0.00042191,30]
[378755601,1755003086485,-517.14,0.00042191,30]
[378755602,1755003086495,-400.0,0.00042191,30]
[378755603,1755003086504,-1000.0,0.00042191,2]
[378755604,1755003086514,-416.76,0.00042191,30]
[378755605,1755003086523,-606.34,0.00042191,7]
[378755606,1755003086536,-463.53,0.00042191,30]
[378755607,1755003086545,-400.0,0.00042191,30]
[378755608,1755003086555,-1058.21,0.00042191,30]
[378755609,1755003086564,-400.0,0.00042191,30]
[378755610,1755003086574,-400.0,0.00042191,30]
[378755611,1755003086584,-400.0,0.00042191,30]
[378755612,1755003086594,-400.0,0.00042191,30]
[378755613,1755003086604,-400.0,0.00042191,30]
[378755614,1755003086614,-400.0,0.00042191,30]
[378755615,1755003086627,-400.0,0.00042191,30]
[378755616,1755003086637,-661.34,0.00042191,30]
[378755617,1755003086647,-400.0,0.00042191,30]
[378755618,1755003086657,-453.89,0.00042191,30]
[378755619,1755003086667,-3468.76,0.00042191,30]
[378755620,1755003086676,-400.0,0.00042191,30]
[378755621,1755003086685,-747.81,0.00042191,30]
[378755622,1755003086696,-413.27,0.00042191,30]
[378755623,1755003086705,-689.53,0.00042191,30]
[378755624,1755003086715,-400.0,0.00042191,30]
[378755625,1755003086725,-567.5,0.00042191,30]
[378755626,1755003086734,-414.54,0.00042191,30]
[378755627,1755003086744,-400.0,0.00042191,30]
[378755628,1755003086753,-3359.66,0.00042191,30]
[378755629,1755003086762,-400.0,0.00042191,30]
[378755630,1755003086771,-400.0,0.00042191,30]
[378755631,1755003086782,-449.21,0.00042191,30]
[378755632,1755003086792,-400.0,0.00042191,30]
[378755633,1755003086802,-704.22,0.00042191,30]
[378755634,1755003086811,-400.0,0.00042191,30]
[378755635,1755003086820,-400.0,0.00042191,30]
[378755636,1755003086830,-400.0,0.00042191,30]
[378755637,1755003086840,-281.02319723,0.00042191,30]
[378755638,1755003086849,-400.0,0.00042191,30]
[378755639,1755003086859,-400.0,0.00042191,30]
[378755640,1755003086869,-400.0,0.00042191,30]
[378755641,1755003086880,-400.0,0.00042191,30]
[378755642,1755003086889,-632.29,0.00042191,30]
[378755643,1755003086900,-466.87,0.00042191,30]
[378755644,1755003086909,-400.0,0.00042191,30]
[378755645,1755003086919,-400.0,0.00042191,30]
[378755646,1755003086929,-400.0,0.00042191,30]
[378755647,1755003086938,-400.0,0.00042191,30]
[378755648,1755003086947,-494.37,0.00042191,30]
[378755649,1755003086957,-400.0,0.00042191,30]
[378755650,1755003086967,-400.0,0.00042191,30]
[378755651,1755003086977,-400.0,0.00042191,30]
[378755652,1755003086987,-601.38,0.00042191,30]
[378755653,1755003086997,-404.48859715,0.00042191,30]
[378755654,1755003087006,-400.0,0.00042191,30]
[378755655,1755003087015,-400.0,0.00042191,30]
[378755656,1755003087024,-710.1,0.00042191,30]
[378755657,1755003087037,-400.0,0.00042191,30]
[378755658,1755003087045,-400.0,0.00042191,30]
[378755659,1755003087052,-400.0,0.00042191,30]
[378755660,1755003087058,-400.0,0.00042191,30]
[378755661,1755003087066,-400.0,0.00042191,30]
[378755662,1755003087075,-400.0,0.00042191,30]
[378755663,1755003087082,-411.52957909,0.00042191,30]
[378755664,1755003087090,-400.0,0.00042191,30]
[378755665,1755003087097,-400.0,0.00042191,30]
[378755666,1755003087104,-400.0,0.00042191,30]
[378755667,1755003087112,-929.42,0.00042191,30]
[378755668,1755003087120,-400.0,0.00042191,30]
[378755669,1755003087126,-400.0,0.00042191,30]
[378755670,1755003087134,-654.03,0.00042191,30]
[378755671,1755003087141,-400.0,0.00042191,30]
[378755672,1755003087149,-151.41,0.00042191,30]
[378755673,1755003087158,-400.0,0.00042191,30]
[378755674,1755003087166,-400.0,0.00042191,30]
[378755675,1755003087174,-683.7,0.00042191,30]
[378755676,1755003087182,-727.2,0.00042191,30]
[378755677,1755003087191,-1130.55,0.00042191,30]
[378755678,1755003087200,-400.0,0.00042191,30]
[378755679,1755003087210,-400.0,0.00042191,30]
[378755680,1755003087220,-400.0,0.00042191,30]
[378755681,1755003087229,-400.0,0.00042191,30]
[378755682,1755003087238,-502.56,0.00042191,30]
[378755683,1755003087247,-400.0,0.00042191,30]
[378755684,1755003087257,-693.76,0.00042191,30]
[378755685,1755003087266,-400.0,0.00042191,30]
[378755686,1755003087276,-2521.4,0.00042191,30]
[378755687,1755003087286,-765.99,0.00042191,30]
[378755688,1755003087296,-400.0,0.00042191,30]
[378755689,1755003087311,-408.27,0.00042191,30]
[378755690,1755003087322,-520.81,0.00042191,30]
[378755691,1755003087330,-400.0,0.00042191,30]
[378755692,1755003087340,-674.11,0.00042191,30]
[378755693,1755003087355,-400.0,0.00042191,30]
[378755694,1755003087367,-463.15,0.00042191,30]
[378755695,1755003087375,-400.0,0.00042191,30]
[378755696,1755003087383,-515.85,0.00042191,30]
[378755697,1755003087392,-400.0,0.00042191,30]
[378755698,1755003087401,-400.0,0.00042191,30]
[378755699,1755003087410,-400.0,0.00042191,14]
[378755700,1755003087419,-400.0,0.00042191,30]
[378755701,1755003087429,-400.0,0.00042191,30]
[378755702,1755003087438,-400.0,0.00042191,30]
[378755703,1755003087448,-726.38,0.00042191,30]
[378755704,1755003087461,-400.0,0.00042191,30]
[378755705,1755003087470,-400.0,0.00042191,30]
[378755706,1755003087480,-1713.36,0.00042191,30]
[378755707,1755003087489,-400.0,0.00042191,30]
[378755708,1755003087500,-564.91,0.00042191,30]
[378755709,1755003087510,-461.85,0.00042191,30]
[378755710,1755003087519,-622.29,0.00042191,30]
[378755711,1755003087528,-576.83,0.00042191,30]
[378755712,1755003087540,-558.07,0.00042191,30]
[378755713,1755003087550,-400.0,0.00042191,30]
[378755714,1755003087559,-400.0,0.00042191,30]
[378755715,1755003087568,-400.0,0.00042191,30]
[378755716,1755003087577,-400.0,0.00042191,30]
[378755717,1755003087587,-400.0,0.00042191,30]
[378755718,1755003087596,-756.4,0.00042191,30]
[378755719,1755003087605,-400.0,0.00042191,30]
[378755720,1755003087615,-471.31,0.00042191,30]
[378755721,1755003087627,-400.0,0.00042191,30]
[378755722,1755003087638,-462.1,0.00042191,30]
[378755723,1755003087647,-400.0,0.00042191,30]
[378755724,1755003087657,-400.0,0.00042191,30]
[378755725,1755003087667,-400.0,0.00042191,30]
[378755726,1755003087677,-555.74,0.00042191,30]
[378755727,1755003087687,-400.0,0.00042191,30]
[378755728,1755003087696,-400.0,0.00042191,30]
[378755729,1755003087705,-475.40960555,0.00042191,30]
[378755730,1755003087831,-740.93,0.00042191,30]
[378755731,1755003087841,-400.0,0.00042191,30]
[378755732,1755003087851,-400.0,0.00042191,30]
[378755733,1755003087860,-400.0,0.00042191,30]
[378755734,1755003087871,-440.15,0.00042191,30]
[378755735,1755003087880,-400.0,0.00042191,30]
[378755736,1755003087890,-400.0,0.00042191,30]
[378755737,1755003087899,-400.0,0.00042191,30]
[378755738,1755003087909,-413.22,0.00042191,30]
[378755739,1755003087919,-400.0,0.00042191,30]
[378755740,1755003087928,-400.0,0.00042191,30]
[378755741,1755003087938,-400.0,0.00042191,30]
[378755742,1755003087947,-500.0,0.00042192,5]
[378755743,1755003087957,-168.0,0.00042206,2]
[378755744,1755003087966,-185969.59369498,0.00042267,30]
[378755745,1755003087975,-168.0,0.00042271,120]
[378755746,1755003087985,-1073.98041103,0.00042272,120]
[378755747,1755003087995,-3399.17565231,0.00042272,15]
[378755748,1755003088005,-168.0,0.00042288,7]
[378755749,1755003088014,-163.5,0.0004231,120]
[378755750,1755003088023,-1195.23,0.00042422,60]
[378755751,1755003088035,-778.98728017,0.00042425,15]
[378755752,1755003088044,-168.0,0.00042426,2]
[378755753,1755003088054,-1457.0,0.00042432,30]
[378755754,1755003088064,-1239.0,0.0004244,5]
[378755755,1755003088073,-173.57,0.00042453,120]
[378755756,1755003088083,-500.0,0.00042464,30]
[378755757,1755003088092,-1071.3,0.00042464,30]
[378755758,1755003088101,-500.0,0.00042464,30]
[378755759,1755003088110,-500.0,0.00042464,2]
[378755760,1755003088119,-500.0,0.00042464,30]
[378755761,1755003088129,-167.61986,0.00042464,30]
[378755762,1755003088138,-737.87,0.00042464,30]
[378755763,1755003088147,-167.619868,0.00042464,30]
[378755764,1755003088157,-500.0,0.00042464,30]
[378755765,1755003088166,-682.48,0.00042464,30]
[378755766,1755003088175,-646.87653698,0.00042464,30]
[378755767,1755003088184,-597.51,0.00042464,30]
[378755768,1755003088194,-1807.39,0.00042464,30]
[378755769,1755003088203,-1894.03,0.00042464,30]
[378755770,1755003088212,-279.25599976,0.00042465,30]
[378755771,1755003088221,-400.0,0.00042465,30]
[378755772,1755003088230,-400.0,0.00042465,30]
[378755773,1755003088239,-400.0,0.00042465,30]
[378755774,1755003088248,-433.31025318,0.00042465,30]
[378755775,1755003088257,-400.0,0.00042465,30]
[378755776,1755003088266,-400.0,0.00042465,30]
[378755777,1755003088276,-646.53,0.00042465,30]
[378755778,1755003088287,-400.0,0.00042465,30]
[378755779,1755003088296,-400.0,0.00042465,30]
[378755780,1755003088305,-400.0,0.00042465,30]
[378755781,1755003088315,-400.0,0.00042465,30]
[378755782,1755003088323,-400.0,0.00042465,30]
[378755783,1755003088333,-400.0,0.00042465,30]
[378755784,1755003088342,-400.0,0.00042465,30]
[378755785,1755003088351,-400.0,0.00042465,30]
[378755786,1755003088361,-544.151326,0.00042465,30]
[378755787,1755003088370,-544.151334,0.00042465,30]
[378755788,1755003088379,-400.0,0.00042465,30]
[378755789,1755003088389,-400.0,0.00042465,30]
[378755790,1755003088399,-400.0,0.00042465,30]
[378755791,1755003088408,-400.0,0.00042465,30]
[378755792,1755003088417,-400.0,0.00042465,30]
[378755793,1755003088426,-400.0,0.00042465,30]
[378755794,1755003088435,-400.0,0.00042465,30]
[378755795,1755003088444,-222.56749723,0.00042465,30]
[378755796,1755003088453,-400.0,0.00042465,30]
[378755797,1755003088463,-400.0,0.00042465,30]
[378755798,1755003088472,-400.0,0.00042465,30]
[378755799,1755003088481,-400.0,0.00042465,30]
[378755800,1755003088490,-400.0,0.00042465,30]
[378755801,1755003088499,-400.0,0.00042465,30]
[378755802,1755003088509,-552.24,0.00042465,30]
[378755803,1755003088518,-400.0,0.00042465,30]
[378755804,1755003088527,-400.0,0.00042465,30]
[378755805,1755003088538,-400.0,0.00042465,30]
[378755806,1755003088547,-411.53,0.00042465,30]
[378755807,1755003088556,-400.0,0.00042465,30]
[378755808,1755003088566,-400.0,0.00042465,30]
[378755809,1755003088575,-400.0,0.00042465,30]
[378755810,1755003088584,-400.0,0.00042465,30]
[378755811,1755003088594,-336.75350244,0.00042465,30]
[378755812,1755003088603,-687.38,0.00042465,30]
[378755813,1755003088612,-400.0,0.00042465,30]
[378755814,1755003088623,-400.0,0.00042465,30]
[378755815,1755003088635,-400.0,0.00042465,30]
[378755816,1755003088650,-400.0,0.00042465,30]
[378755817,1755003088666,-400.0,0.00042465,30]
[378755818,1755003088676,-400.0,0.00042465,30]
[378755819,1755003088685,-648.2,0.00042465,30]
[378755820,1755003088695,-400.0,0.00042465,30]
[378755821,1755003088706,-400.0,0.00042465,30]
[378755822,1755003088716,-400.0,0.00042465,30]
[378755823,1755003088726,-400.0,0.00042465,30]
[378755824,1755003088735,-400.0,0.00042465,30]
[378755825,1755003088745,-400.0,0.00042465,30]
[378755826,1755003088754,-400.0,0.00042465,30]
[378755827,1755003088764,-400.0,0.00042465,30]
[378755828,1755003088773,-400.0,0.00042465,30]
[378755829,1755003088784,-400.0,0.00042465,30]
[378755830,1755003088794,-400.0,0.00042465,30]
[378755831,1755003088803,-400.0,0.00042465,30]
[378755832,1755003088813,-424.7,0.00042465,30]
[378755833,1755003088822,-541.9,0.00042465,30]
[378755834,1755003088832,-268.653618,0.00042465,30]
[378755835,1755003088842,-400.0,0.00042465,30]
[378755836,1755003088852,-400.0,0.00042465,30]
[378755837,1755003088862,-565.63,0.00042465,30]
[378755838,1755003088871,-400.0,0.00042465,30]
[378755839,1755003088880,-400.0,0.00042465,30]
[378755840,1755003088889,-592.88,0.00042465,30]
[378755841,1755003088899,-400.0,0.00042465,30]
[378755842,1755003088908,-4791.08,0.00042465,30]
[378755843,1755003088917,-400.0,0.00042465,30]
[378755844,1755003088926,-400.0,0.00042465,30]
[378755845,1755003088935,-400.0,0.00042465,30]
[378755846,1755003088945,-400.0,0.00042465,30]
[378755847,1755003088954,-400.0,0.00042465,30]
[378755848,1755003088963,-400.0,0.00042465,30]
[378755849,1755003088972,-475.4,0.00042465,30]
[378755850,1755003088981,-421.82,0.00042465,30]
[378755851,1755003088991,-400.0,0.00042465,30]
[378755852,1755003089000,-400.0,0.00042465,30]
[378755853,1755003089009,-400.0,0.00042465,30]
[378755854,1755003089018,-275.36456,0.00042465,30]
[378755855,1755003089027,-400.0,0.00042465,30]
[378755856,1755003089038,-488.37925796,0.00042465,30]
[378755857,1755003089047,-231.43,0.00042465,30]
[378755858,1755003089057,-432.57,0.00042465,30]
[378755859,1755003089066,-400.0,0.00042465,30]
[378755860,1755003089075,-419.5,0.00042465,30]
[378755861,1755003089085,-400.0,0.00042465,30]
[378755862,1755003089095,-400.0,0.00042465,30]
[378755863,1755003089105,-400.0,0.00042465,30]
[378755864,1755003089114,-446.44562619,0.00042465,30]
[378755865,1755003089123,-400.0,0.00042465,30]
[378755866,1755003089132,-400.0,0.00042465,30]
[378755867,1755003089141,-400.0,0.00042465,30]
[378755868,1755003089150,-400.0,0.00042465,30]
[378755869,1755003089160,-400.0,0.00042465,30]
[378755870,1755003089169,-400.0,0.00042465,30]
[378755871,1755003089178,-400.0,0.00042465,30]
[378755872,1755003089188,-400.0,0.00042465,30]
[378755873,1755003089197,-400.0,0.00042465,30]
[378755874,1755003089207,-400.0,0.00042465,30]
[378755875,1755003089216,-500.94,0.00042465,30]
[378755876,1755003089225,-400.0,0.00042465,30]
[378755877,1755003089235,-439.76992842,0.00042465,30]
[378755878,1755003089244,-649.81,0.00042465,30]
[378755879,1755003089253,-400.0,0.00042465,30]
[378755880,1755003089263,-400.0,0.00042465,30]